bitfinex/quotes_BTCUSD_20251205
["timestamp","ask_amount","ask_price","bid_price","bid_amount"]
[1764918501534,0.0002,92420.0,92419.0,0.46227611]
[1764918501535,0.00221589,92420.0,92419.0,0.46227611]
[1764918501953,0.00221589,92420.0,92419.0,0.46627611]
[1764918502156,0.00221589,92420.0,92419.0,0.46227611]
[1764918502488,0.00221589,92420.0,92419.0,0.46827611]
[1764918505366,0.00221589,92420.0,92419.0,0.49435268]
[1764918506399,0.00221589,92420.0,92419.0,0.46827611]
[1764918506851,0.00221589,92420.0,92419.0,0.44519611]
[1764918507402,0.00221589,92420.0,92419.0,0.47027611]
[1764918507610,0.00221589,92420.0,92419.0,0.44519611]
[1764918507755,0.00221589,92420.0,92419.0,0.44757611]
[1764918508122,0.00221589,92420.0,92419.0,0.3464]
[1764918508329,0.00221589,92420.0,92419.0,0.40775312]
[1764918508749,0.00221589,92420.0,92419.0,0.47027611]
[1764918510076,0.00221589,92420.0,92419.0,0.46666772]
[1764918510279,0.00221589,92420.0,92419.0,0.45726772]
[1764918510469,0.00221589,92420.0,92419.0,0.39474473]
[1764918510848,0.00221589,92420.0,92419.0,0.37766473]
[1764918511069,0.00221589,92420.0,92419.0,0.39306473]
[1764918511235,0.00221589,92420.0,92419.0,0.41014473]
[1764918511435,0.00221589,92420.0,92419.0,0.39474473]
[1764918511862,0.00221589,92420.0,92419.0,0.37766473]
[1764918512218,0.21861926,92420.0,92419.0,0.02757312]
[1764918512422,0.21861926,92420.0,92419.0,0.04465312]
[1764918512748,0.25774926,92420.0,92419.0,0.04465312]
[1764918512954,0.04134589,92420.0,92419.0,0.04465312]
[1764918513490,0.04134589,92420.0,92419.0,0.03865312]
[1764918513788,0.04134589,92420.0,92419.0,0.04165312]
[1764918514744,0.25774926,92420.0,92419.0,0.04165312]
[1764918516004,0.25774926,92420.0,92419.0,0.02457312]
[1764918516204,0.25774926,92420.0,92419.0,0.04165312]
[1764918516404,0.25774926,92420.0,92419.0,0.03865312]
[1764918516918,0.26943926,92420.0,92419.0,0.03865312]
[1764918517120,0.02960589,92420.0,92419.0,0.03965312]
[1764918517436,0.26959926,92420.0,92419.0,0.03965312]
[1764918518264,0.26959926,92420.0,92419.0,0.01808]
[1764918518472,0.26959926,92420.0,92419.0,0.03965312]
[1764918519837,0.05319589,92420.0,92419.0,0.03965312]
[1764918520122,0.24600926,92420.0,92419.0,0.03965312]
[1764918520297,0.02960589,92420.0,92419.0,0.01808]
[1764918520506,0.02960589,92420.0,92419.0,0.03965312]
[1764918521990,0.26959926,92420.0,92419.0,0.03965312]
[1764918524836,0.26959926,92420.0,92419.0,0.01808]
[1764918524982,0.26959926,92420.0,92419.0,0.001]
[1764918525389,0.27971534,92420.0,92419.0,0.001]
[1764918525851,0.26959926,92420.0,92419.0,0.001]
[1764918526434,0.21640805,92418.0,92417.0,0.02157312]
[1764918526751,0.23247805,92418.0,92417.0,0.02157312]
[1764918526896,0.25566805,92418.0,92417.0,0.02157312]
[1764918527092,0.0108218,92406.0,92405.0,0.02157312]
[1764918527294,0.22725796,92406.0,92405.0,0.03865312]
[1764918527508,0.26651796,92406.0,92405.0,0.03865312]
[1764918528225,0.0500818,92406.0,92405.0,0.03865312]
[1764918528439,0.21642542,92411.0,92410.0,0.02157312]
[1764918528655,0.23249542,92411.0,92410.0,0.02157312]
[1764918528925,0.25568542,92411.0,92410.0,0.02157312]
[1764918529891,0.25568542,92411.0,92410.0,0.02257312]
[1764918530512,0.25568542,92411.0,92410.0,0.001]
[1764918531253,0.26650875,92411.0,92410.0,0.001]
[1764918532490,0.21644553,92402.0,92401.0,0.01708]
[1764918532766,0.23251553,92402.0,92401.0,0.01708]
[1764918532929,0.25720334,92402.0,92401.0,0.01708]
[1764918533464,0.25720334,92402.0,92385.0,0.323]
[1764918533465,0.21645724,92397.0,92396.0,0.01708]
[1764918533679,0.21646192,92395.0,92394.0,0.02157312]
[1764918533880,0.23253192,92395.0,92394.0,0.02157312]
[1764918534087,0.25572192,92395.0,92394.0,0.02157312]
[1764918536046,0.25672192,92395.0,92394.0,0.02157312]
[1764918537961,0.2164713,92391.0,92390.0,0.03865312]
[1764918538160,0.2449213,92391.0,92390.0,0.01708]
[1764918538371,0.2681113,92391.0,92390.0,0.01708]
[1764918541754,0.05164,92391.0,92390.0,0.03865312]
[1764918542277,0.02845,92391.0,92390.0,0.03865312]
[1764918542835,0.05164,92391.0,92390.0,0.03865312]
[1764918543083,0.01082192,92405.0,92393.0,0.01082333]
[1764918543382,0.02320215,92403.0,92399.0,0.02157312]
[1764918543870,0.05164,92400.0,92399.0,0.02157312]
[1764918545329,0.02845,92400.0,92399.0,0.02157312]
[1764918545467,0.01238,92400.0,92399.0,0.02157312]
[1764918546404,0.01238,92403.0,92400.0,0.22727272]
[1764918546607,0.01238,92403.0,92402.0,0.02157312]
[1764918546816,0.03557,92403.0,92402.0,0.02157312]
[1764918547008,0.01238,92403.0,92402.0,0.02157312]
[1764918547599,0.05298,92403.0,92402.0,0.02157312]
[1764918547815,0.26942318,92403.0,92402.0,0.02157312]
[1764918548031,0.05450659,92403.0,92402.0,0.02157312]
[1764918548231,0.03056659,92403.0,92402.0,0.02157312]
[1764918548636,0.03156659,92403.0,92402.0,0.02157312]
[1764918550478,0.05550659,92403.0,92402.0,0.02157312]
[1764918550973,0.03156659,92403.0,92402.0,0.02157312]
[1764918551196,0.01490659,92403.0,92402.0,0.02157312]
[1764918551336,0.00252659,92403.0,92402.0,0.02157312]
[1764918551936,0.00252659,92403.0,92402.0,0.08409611]
[1764918552280,0.00252659,92403.0,92402.0,0.09950611]
[1764918552978,0.00252659,92403.0,92402.0,0.12326611]
[1764918553322,0.00152659,92403.0,92402.0,0.12326611]
[1764918553799,0.00152659,92403.0,92402.0,0.02757312]
[1764918553926,0.04212659,92403.0,92402.0,0.04465312]
[1764918554768,0.04212659,92403.0,92402.0,0.03865312]
[1764918554971,0.00152659,92403.0,92402.0,0.05406312]
[1764918555315,0.00152659,92403.0,92402.0,0.04265312]
[1764918555715,0.01818659,92403.0,92402.0,0.04265312]
[1764918555949,0.04212659,92403.0,92402.0,0.04265312]
[1764918557878,0.04212659,92403.0,92402.0,0.004]
[1764918558089,0.04212659,92403.0,92402.0,0.02108]
[1764918558688,0.04212659,92403.0,92402.0,0.04265312]
[1764918558897,0.04212659,92403.0,92402.0,0.01708]
[1764918559172,0.04312659,92403.0,92402.0,0.01708]
[1764918560095,0.2272678,92402.0,92399.0,0.02157312]
[1764918560299,0.02895,92400.0,92399.0,0.02157312]
[1764918560527,0.24540021,92400.0,92399.0,0.03865312]
[1764918560731,0.26934021,92400.0,92399.0,0.03865312]
[1764918563841,0.26934021,92400.0,92399.0,0.02157312]
[1764918563986,0.01082415,92386.0,92382.0,0.02157312]
[1764918564189,0.0345345,92383.0,92382.0,0.02157312]
[1764918564388,0.0345345,92383.0,92382.0,0.03865312]
[1764918564641,0.0584745,92383.0,92382.0,0.03865312]
[1764918565058,0.04765,92383.0,92382.0,0.03865312]
[1764918565278,0.26414004,92383.0,92382.0,0.03865312]
[1764918565504,0.04765,92383.0,92382.0,0.04065312]
[1764918566470,0.26414004,92383.0,92382.0,0.04065312]
[1764918568275,0.04765,92383.0,92382.0,0.04065312]
[1764918571103,0.04860073,92383.0,92382.0,0.04065312]
[1764918571659,0.00095073,92383.0,92382.0,0.14234611]
[1764918571863,0.21644019,92405.0,92382.0,0.14234611]
[1764918571864,0.01229,92416.0,92407.0,0.02157312]
[1764918571865,0.00619439,92408.0,92407.0,0.02157312]
[1764918572078,0.00619439,92408.0,92407.0,0.03865312]
[1764918572518,0.00691431,92408.0,92407.0,0.25508693]
[1764918572731,0.00071992,92408.0,92407.0,0.25508693]
[1764918576630,0.00071992,92408.0,92407.0,0.03865312]
[1764918576830,0.01737992,92408.0,92407.0,0.03865312]
[1764918577055,0.01737992,92408.0,92407.0,0.25508693]
[1764918578348,0.00071992,92408.0,92407.0,0.25508693]
[1764918579061,0.00071992,92408.0,92407.0,0.23800693]
[1764918579259,0.03806992,92408.0,92407.0,0.03865312]
[1764918580821,0.25450139,92408.0,92407.0,0.03865312]
[1764918581399,0.25450139,92408.0,92407.0,0.01708]
[1764918581601,0.25450139,92408.0,92407.0,0.03865312]
[1764918581805,4.036e-05,92438.0,92419.0,0.02157312]
[1764918582010,4.036e-05,92438.0,92419.0,1.5727298]
[1764918582210,4.036e-05,92438.0,92437.0,0.30045968]
[1764918582468,4.036e-05,92438.0,92437.0,0.34558968]
[1764918582633,4.036e-05,92438.0,92437.0,0.37032968]
[1764918583034,4.036e-05,92438.0,92437.0,0.34558968]
[1764918583434,4.036e-05,92438.0,92437.0,0.37032968]
[1764918584038,4.036e-05,92438.0,92437.0,0.37232968]
[1764918584664,4.036e-05,92438.0,92437.0,0.34758968]
[1764918586076,4.036e-05,92438.0,92437.0,0.33093968]
[1764918587054,4.036e-05,92438.0,92437.0,0.30245968]
[1764918587264,4.036e-05,92438.0,92437.0,0.31957968]
[1764918589822,4.036e-05,92438.0,92437.0,0.33661656]
[1764918590060,4.036e-05,92438.0,92437.0,0.35818968]
[1764918592580,0.00090387,92438.0,92437.0,0.35818968]
[1764918592794,0.00090387,92438.0,92437.0,0.68118968]
[1764918593888,0.00090387,92438.0,92437.0,0.67918968]
[1764918594377,0.00090387,92438.0,92437.0,0.68318968]
[1764918598746,0.00090387,92438.0,92437.0,0.66606968]
[1764918599435,0.00090387,92438.0,92437.0,0.68318968]
[1764918600117,0.00090387,92438.0,92437.0,0.66606968]
[1764918600433,0.00090387,92438.0,92437.0,0.68318968]
[1764918601555,0.00090387,92438.0,92437.0,0.66606968]
[1764918601687,0.00090387,92438.0,92437.0,0.58197357]
[1764918601884,0.00090387,92438.0,92437.0,0.27498669]
[1764918602442,0.00090387,92438.0,92437.0,0.29766669]
[1764918602649,0.00090387,92438.0,92437.0,0.36018968]
[1764918603250,0.00090387,92438.0,92437.0,0.68318968]
[1764918603416,0.00090387,92438.0,92437.0,0.36018968]
[1764918607482,0.00090387,92438.0,92437.0,0.33861656]
[1764918607822,0.0002,92450.0,92449.0,0.6234316]
[1764918607942,0.0002,92450.0,92449.0,0.6927916]
[1764918608138,0.0002,92450.0,92449.0,0.65409848]
[1764918608344,0.0002,92450.0,92449.0,0.70360428]
[1764918608777,0.0002,92450.0,92449.0,0.6927916]
[1764918609394,0.0002,92450.0,92449.0,0.7007916]
[1764918609597,0.0002,92450.0,92449.0,0.02157312]
[1764918609795,0.0002,92450.0,92449.0,0.03869312]
[1764918609995,0.0166,92450.0,92449.0,0.04369312]
[1764918610207,0.23293315,92450.0,92449.0,0.04369312]
[1764918610952,0.0166,92450.0,92449.0,0.04369312]
[1764918611158,0.0166,92450.0,92449.0,0.03869312]
[1764918611496,0.0002,92450.0,92449.0,0.04169312]
[1764918613308,0.0005453,92450.0,92449.0,0.04169312]
[1764918613748,0.25512845,92450.0,92449.0,0.04169312]
[1764918613952,0.23327845,92450.0,92449.0,0.04169312]
[1764918614152,0.0005453,92450.0,92449.0,0.04169312]
[1764918614564,0.0005453,92450.0,92449.0,0.02012]
[1764918614734,0.0005453,92450.0,92449.0,0.04169312]
[1764918616714,0.0005453,92450.0,92449.0,0.05701312]
[1764918617654,0.0005453,92450.0,92449.0,0.04169312]
[1764918617779,0.0005453,92450.0,92449.0,0.25802861]
[1764918619037,0.0005453,92450.0,92449.0,0.04169312]
[1764918619391,0.0387953,92450.0,92449.0,0.02457312]
[1764918619744,0.0387953,92450.0,92449.0,0.04169312]
[1764918620109,0.0387953,92450.0,92449.0,0.003]
[1764918620307,0.0387953,92450.0,92410.0,0.51785959]
[1764918620308,0.22721142,92425.0,92424.0,0.02157312]
[1764918620519,0.02185,92425.0,92424.0,0.03869312]
[1764918620726,0.03825,92425.0,92424.0,0.03869312]
[1764918620936,0.25464166,92425.0,92424.0,0.03869312]
[1764918621139,0.0164,92425.0,92424.0,0.03869312]
[1764918621496,0.0164,92425.0,92424.0,0.25508713]
[1764918621696,0.0164,92425.0,92424.0,0.03969312]
[1764918621697,0.25464166,92425.0,92424.0,0.03969312]
[1764918623115,0.03825,92425.0,92424.0,0.03969312]
[1764918623356,0.0164,92425.0,92424.0,0.01812]
[1764918623587,0.0164,92425.0,92424.0,0.03969312]
[1764918624245,0.03825,92425.0,92424.0,0.03969312]
[1764918625981,0.0164,92425.0,92424.0,0.03969312]
[1764918627297,0.03825,92425.0,92424.0,0.03969312]
[1764918628631,0.0164,92425.0,92424.0,0.03969312]
[1764918629507,0.03825,92425.0,92424.0,0.03969312]
[1764918630560,0.0164,92425.0,92424.0,0.03969312]
[1764918632832,0.03825,92425.0,92424.0,0.03969312]
[1764918635409,0.01092,92426.0,92425.0,0.02157312]
[1764918635786,0.01092,92426.0,92425.0,0.23796478]
[1764918635989,0.0002,92450.0,92425.0,0.23796478]
[1764918635990,0.01081735,92444.0,92443.0,0.02157312]
[1764918636193,0.01081735,92444.0,92443.0,0.03869312]
[1764918636374,0.02721735,92444.0,92443.0,0.03869312]
[1764918637273,0.01081735,92444.0,92443.0,0.03869312]
[1764918637901,0.02988735,92444.0,92443.0,0.03869312]
[1764918640786,0.02988735,92444.0,92443.0,0.01712]
[1764918640982,0.02988735,92444.0,92443.0,0.03869312]
[1764918641195,0.05173735,92444.0,92443.0,0.03869312]
[1764918641397,0.05173735,92444.0,92443.0,0.01712]
[1764918642044,0.21635655,92440.0,92439.0,0.02157312]
[1764918642250,0.23142655,92440.0,92439.0,0.03869312]
[1764918642480,0.25327655,92440.0,92439.0,0.03869312]
[1764918643604,0.25627655,92440.0,92439.0,0.03869312]
[1764918644310,0.227219,92422.0,92421.0,0.02157312]
[1764918644434,0.227219,92422.0,92421.0,0.03869312]
[1764918644636,0.264139,92422.0,92421.0,0.03869312]
[1764918645761,0.264139,92422.0,92421.0,0.01712]
[1764918652793,0.264139,92422.0,92421.0,0.03869312]
[1764918657674,0.266139,92422.0,92421.0,0.03869312]
[1764918659893,0.266139,92422.0,92421.0,0.01712]
[1764918660328,0.01082239,92401.0,92396.0,0.01082297]
[1764918660537,0.01082227,92402.0,92401.0,0.02157312]
[1764918660955,0.05892227,92402.0,92401.0,0.02157312]
[1764918662096,0.03707227,92402.0,92401.0,0.02557312]
[1764918662298,0.02625,92402.0,92401.0,0.02557312]
[1764918662507,0.02625,92402.0,92401.0,0.004]
[1764918662803,0.05892227,92402.0,92399.0,0.02157312]
[1764918663009,0.01533,92400.0,92398.0,0.01082274]
[1764918663207,0.01533,92400.0,92399.0,0.02157312]
[1764918665608,0.01092,92402.0,92399.0,0.24884658]
[1764918665771,0.01092,92402.0,92401.0,0.23802099]
[1764918666866,0.01092,92402.0,92401.0,0.02157312]
[1764918667287,0.01092,92402.0,92401.0,0.23802099]
[1764918668468,0.01092,92402.0,92401.0,0.24102099]
[1764918670992,0.02605,92402.0,92401.0,0.24102099]
[1764918671519,0.02605,92402.0,92401.0,0.02457312]
[1764918671723,0.0479,92402.0,92401.0,0.02457312]
[1764918672554,0.02605,92402.0,92401.0,0.02457312]
[1764918672770,0.01092,92402.0,92401.0,0.02457312]
[1764918677418,0.01082005,92421.0,92401.0,0.05554]
[1764918677593,0.02185,92421.0,92420.0,0.02157312]
[1764918677999,0.03698,92421.0,92420.0,0.02157312]
[1764918678380,0.03698,92421.0,92420.0,0.23797649]
[1764918678586,0.03698,92421.0,92420.0,0.02157312]
[1764918679381,0.03798,92421.0,92420.0,0.02157312]
[1764918688770,0.001,92421.0,92420.0,0.02157312]
[1764918689144,0.01613,92421.0,92420.0,0.02157312]
[1764918689738,0.03798,92421.0,92420.0,0.02157312]
[1764918691732,0.21640337,92420.0,92419.0,0.02157312]
[1764918692070,0.23825337,92420.0,92419.0,0.02157312]
[1764918692214,0.25338337,92420.0,92419.0,0.02157312]
[1764918693767,0.25438337,92420.0,92419.0,0.02157312]
[1764918700207,0.01082192,92405.0,92398.0,0.01082274]
[1764918700430,0.22726042,92405.0,92404.0,0.02157312]
[1764918700636,0.22726042,92405.0,92404.0,0.03865312]
[1764918700958,0.24305042,92405.0,92404.0,0.03865312]
[1764918701177,0.26490042,92405.0,92404.0,0.03865312]
[1764918701616,0.26490042,92405.0,92404.0,0.01708]
[1764918702687,0.04846192,92405.0,92404.0,0.01908]
[1764918703165,0.03764,92405.0,92404.0,0.04065312]
[1764918703328,0.01579,92405.0,92404.0,0.04065312]
[1764918703487,0.03764,92405.0,92404.0,0.04065312]
[1764918705749,0.03764,92405.0,92404.0,0.03865312]
[1764918706150,0.03764,92405.0,92404.0,0.03965312]
[1764918708164,0.01579,92405.0,92404.0,0.03965312]
[1764918709172,0.03764,92405.0,92404.0,0.03965312]
[1764918709742,0.01579,92405.0,92404.0,0.03965312]
[1764918709928,0.03764,92405.0,92404.0,0.03965312]
[1764918710134,0.01579,92405.0,92404.0,0.03965312]
[1764918710310,0.03764,92405.0,92404.0,0.03965312]
[1764918712130,0.03764,92405.0,92404.0,0.01808]
[1764918712533,0.03764,92405.0,92404.0,0.001]
[1764918712896,0.03764,92405.0,92401.0,0.01708]
[1764918712897,0.22726288,92404.0,92401.0,0.01708]
[1764918713138,0.01608,92402.0,92401.0,0.01708]
[1764918713344,0.22730789,92386.0,92385.0,0.02157312]
[1764918713577,0.22730789,92386.0,92385.0,0.03865312]
[1764918713782,0.26523789,92386.0,92385.0,0.03865312]
[1764918715334,0.26523789,92386.0,92385.0,0.04065312]
[1764918715681,0.03793,92386.0,92385.0,0.04065312]
[1764918715882,0.01608,92386.0,92385.0,0.04065312]
[1764918716082,0.03793,92386.0,92385.0,0.04065312]
[1764918718207,0.03793,92386.0,92385.0,0.03865312]
[1764918718507,0.03793,92386.0,92385.0,0.04065312]
[1764918718809,0.03793,92386.0,92385.0,0.03865312]
[1764918718973,0.03793,92386.0,92385.0,0.03965312]
[1764918719174,0.03793,92386.0,92385.0,0.01808]
[1764918722091,0.03793,92386.0,92385.0,0.03965312]
[1764918743438,0.03793,92386.0,92385.0,0.01808]
[1764918743969,0.03793,92386.0,92385.0,0.001]
[1764918744343,0.03793,92386.0,92381.0,0.01708]
[1764918744344,0.21649004,92383.0,92381.0,0.01708]
[1764918744550,0.01573,92382.0,92381.0,0.01708]
[1764918744763,0.03758,92382.0,92381.0,0.01708]
[1764918745815,0.03958,92382.0,92381.0,0.01708]
[1764918760009,0.03958,92382.0,92381.0,0.03865312]
[1764918765941,0.03958,92382.0,92381.0,0.01708]
[1764918771808,0.01082532,92376.0,92372.0,0.02157312]
[1764918771983,0.03704567,92373.0,92372.0,0.02157312]
[1764918772175,0.03704567,92373.0,92372.0,0.03865312]
[1764918772378,0.05889567,92373.0,92372.0,0.03865312]
[1764918777145,0.02622,92373.0,92372.0,0.01708]
[1764918777350,0.02622,92373.0,92372.0,0.03865312]
[1764918778178,0.01092,92373.0,92372.0,0.03865312]
[1764918780244,0.02622,92373.0,92372.0,0.03865312]
[1764918786348,0.04807,92373.0,92372.0,0.03865312]
[1764918786926,0.02622,92373.0,92372.0,0.03865312]
[1764918787186,0.04807,92373.0,92372.0,0.03865312]
[1764918787743,0.02622,92373.0,92372.0,0.03865312]
[1764918787948,0.04807,92373.0,92372.0,0.03865312]
[1764918790480,0.04807,92373.0,92372.0,0.02157312]
[1764918790708,0.04807,92373.0,92372.0,0.03865312]
[1764918791838,0.04807,92373.0,92372.0,0.01708]
[1764918792332,0.04807,92373.0,92372.0,0.03865312]
[1764918794757,0.04807,92373.0,92372.0,0.25516894]
[1764918795396,0.04807,92373.0,92372.0,0.03865312]
[1764918796114,0.26458348,92373.0,92372.0,0.03865312]
[1764918796731,0.04807,92373.0,92372.0,0.03865312]
[1764918796937,0.26458348,92373.0,92372.0,0.03865312]
[1764918797137,0.04807,92373.0,92372.0,0.03865312]
[1764918798712,0.26458348,92373.0,92372.0,0.03865312]
[1764918798852,0.04807,92373.0,92372.0,0.03865312]
[1764918799290,0.26458348,92373.0,92372.0,0.03865312]
[1764918799884,0.04807,92373.0,92372.0,0.03865312]
[1764918800089,0.04807,92373.0,92372.0,0.01708]
[1764918802433,0.04907,92373.0,92372.0,0.01708]
[1764918802646,0.04907,92373.0,92344.0,0.01082907]
[1764918802647,0.01082872,92347.0,92344.0,0.01082907]
[1764918802848,0.01082778,92355.0,92352.0,0.02157312]
[1764918803052,0.21655802,92354.0,92352.0,0.02157312]
[1764918803192,0.01543,92353.0,92352.0,0.02157312]
[1764918803394,0.03728,92353.0,92352.0,0.02157312]
[1764918804055,0.03728,92353.0,92352.0,0.02557312]
[1764918805595,0.03728,92353.0,92352.0,0.02157312]
[1764918805777,0.01543,92353.0,92352.0,0.02157312]
[1764918805977,0.01543,92353.0,92352.0,0.02557312]
[1764918806176,0.21654432,92360.0,92352.0,0.02557312]
[1764918806177,0.22734606,92371.0,92365.0,0.01082661]
[1764918806354,0.21651431,92373.0,92368.0,0.02157312]
[1764918806355,0.01092,92369.0,92368.0,0.02157312]
[1764918807076,0.02635,92369.0,92368.0,0.02157312]
[1764918808961,0.01092,92369.0,92368.0,0.02157312]
[1764918809169,0.01092,92369.0,92368.0,0.02257312]
[1764918817285,0.02635,92369.0,92368.0,0.02257312]
[1764918817767,0.01092,92369.0,92368.0,0.02257312]
[1764918821039,0.02683,92369.0,92368.0,0.001]
[1764918821251,0.04868,92369.0,92368.0,0.03965312]
[1764918824034,0.04868,92369.0,92368.0,0.001]
[1764918824195,0.04868,92369.0,92368.0,0.01808]
[1764918825447,0.04868,92369.0,92368.0,0.01708]
[1764918825675,0.04868,92369.0,92368.0,0.01808]
[1764918826518,0.04868,92369.0,92368.0,0.001]
[1764918826850,0.04868,92369.0,92368.0,0.01708]
[1764918828313,0.04968,92369.0,92368.0,0.01708]
[1764918828874,0.04968,92369.0,92368.0,0.03865312]
[1764918838621,0.02783,92369.0,92368.0,0.03865312]
[1764918839585,0.04968,92369.0,92368.0,0.03865312]
[1764918840439,0.01192,92369.0,92368.0,0.03865312]
[1764918841927,0.01192,92369.0,92368.0,0.02157312]
[1764918842236,0.01192,92369.0,92368.0,0.03865312]
[1764918842436,0.01092,92369.0,92368.0,0.03865312]
[1764918842664,0.01092,92369.0,92368.0,0.25517832]
[1764918846248,0.01092,92369.0,92368.0,0.25617832]
[1764918846882,0.01092,92372.0,92371.0,0.02157312]
[1764918848553,0.03791579,92372.0,92371.0,0.02157312]
[1764918848755,0.22734407,92371.0,92369.0,0.02157312]
[1764918849201,0.01617,92370.0,92369.0,0.02157312]
[1764918849850,0.01617,92370.0,92369.0,0.02257312]
[1764918850105,0.01617,92370.0,92369.0,0.02157312]
[1764918850246,0.23269051,92370.0,92368.0,0.01708]
[1764918850452,0.21653639,92364.0,92362.0,0.02157312]
[1764918850655,0.21653639,92364.0,92363.0,0.03865312]
[1764918851093,0.24362639,92364.0,92363.0,0.03865312]
[1764918851285,0.22738407,92355.0,92354.0,0.02157312]
[1764918851451,0.01082778,92355.0,92354.0,0.03865312]
[1764918851669,0.01082754,92357.0,92356.0,0.02157312]
[1764918851867,0.02185,92358.0,92357.0,0.02157312]
[1764918852068,0.01617,92358.0,92357.0,0.02157312]
[1764918852447,0.02185,92363.0,92362.0,0.02157312]
[1764918852875,0.01092,92364.0,92362.0,0.21653926]
[1764918853127,0.01092,92364.0,92363.0,0.02157312]
[1764918856180,0.01092,92372.0,92371.0,0.02157312]
[1764918856181,0.02174579,92372.0,92371.0,0.02157312]
[1764918856357,0.01092,92372.0,92371.0,0.03865312]
[1764918864611,0.02709,92372.0,92371.0,0.03865312]
[1764918867659,0.02709,92372.0,92371.0,0.25517129]
[1764918867806,0.02709,92372.0,92371.0,0.03865312]
[1764918868040,0.02709,92372.0,92371.0,0.01708]
[1764918868250,0.01092,92372.0,92371.0,0.23359817]
[1764918870692,0.01092,92372.0,92371.0,0.25517129]
[1764918871558,0.01092,92372.0,92371.0,0.23359817]
[1764918871754,0.01092,92372.0,92371.0,0.25517129]
[1764918875425,0.02709,92372.0,92371.0,0.25517129]
[1764918876747,0.01092,92372.0,92371.0,0.25517129]
[1764918884050,0.01092,92377.0,92376.0,0.02157312]
[1764918884466,0.02593,92377.0,92376.0,0.02157312]
[1764918884677,0.04778,92377.0,92376.0,0.02157312]
[1764918885235,0.04878,92377.0,92376.0,0.02157312]
[1764918889862,0.02693,92377.0,92376.0,0.02157312]
[1764918890580,0.04878,92377.0,92376.0,0.02157312]
[1764918894674,0.01082555,92374.0,92370.0,0.02157312]
[1764918894848,0.01082555,92374.0,92361.0,0.01082708]
[1764918894849,0.01082661,92365.0,92364.0,0.02157312]
[1764918894991,0.22735964,92365.0,92364.0,0.03865312]
[1764918895194,0.26469964,92365.0,92364.0,0.03865312]
[1764918895617,0.03734,92365.0,92364.0,0.03865312]
[1764918896023,0.01549,92365.0,92364.0,0.04065312]
[1764918896248,0.03734,92365.0,92364.0,0.04065312]
[1764918898643,0.03734,92365.0,92364.0,0.03865312]
[1764918899051,0.03734,92365.0,92364.0,0.03965312]
[1764918900537,0.01549,92365.0,92364.0,0.2561877]
[1764918902459,0.01549,92365.0,92364.0,0.03965312]
[1764918902636,0.03734,92365.0,92364.0,0.03965312]
[1764918907979,0.03734,92365.0,92364.0,0.02257312]
[1764918908233,0.03734,92365.0,92364.0,0.03965312]
[1764918912724,0.03734,92365.0,92364.0,0.02257312]
[1764918912922,0.03734,92365.0,92364.0,0.03965312]
[1764918913130,0.03734,92365.0,92364.0,0.01808]
[1764918913790,0.0354846,92365.0,92364.0,0.01808]
[1764918914585,0.0354846,92365.0,92364.0,0.01708]
[1764918916426,0.0354846,92365.0,92364.0,0.03865312]
[1764918918834,0.01082766,92356.0,92355.0,0.30376204]
[1764918919039,0.01576,92356.0,92355.0,0.01708]
[1764918919279,0.01576,92356.0,92355.0,0.03865312]
[1764918920261,0.03575,92356.0,92355.0,0.03865312]
[1764918921122,0.03575,92356.0,92355.0,0.04065312]
[1764918922387,0.03575,92356.0,92355.0,0.002]
[1764918922865,0.03575,92356.0,92355.0,0.01908]
[1764918923243,0.05732312,92356.0,92355.0,0.01908]
[1764918923444,0.05732312,92356.0,92355.0,0.04065312]
[1764918923950,0.03733312,92356.0,92355.0,0.04065312]
[1764918924186,0.22736622,92362.0,92361.0,0.02157312]
[1764918924639,0.24312622,92362.0,92361.0,0.02157312]
[1764918924853,0.28468934,92362.0,92361.0,0.02157312]
[1764918925691,0.28668934,92362.0,92361.0,0.02157312]
[1764918930146,0.21655333,92356.0,92355.0,0.03865312]
[1764918930348,0.23231333,92356.0,92355.0,0.03865312]
[1764918930587,0.25230333,92356.0,92355.0,0.03865312]
[1764918930759,0.03575,92356.0,92355.0,0.03865312]
[1764918931281,0.03675,92356.0,92355.0,0.03865312]
[1764918931865,0.01676,92356.0,92355.0,0.03865312]
[1764918932672,0.03675,92356.0,92355.0,0.03865312]
[1764918933006,0.01676,92356.0,92355.0,0.03865312]
[1764918936130,0.23331333,92356.0,92355.0,0.03865312]
[1764918936329,0.01676,92356.0,92355.0,0.03865312]
[1764918937176,0.03675,92356.0,92355.0,0.03865312]
[1764918939250,0.03675,92356.0,92355.0,0.01708]
[1764918939449,0.001,92356.0,92355.0,0.07794312]
[1764918940012,0.001,92356.0,92355.0,0.05426312]
[1764918941261,0.001,92356.0,92355.0,0.37937]
[1764918941440,0.001,92356.0,92355.0,0.46346611]
[1764918941839,0.001,92356.0,92355.0,0.48054611]
[1764918943245,0.01092,92374.0,92373.0,0.02157312]
[1764918943446,0.01092,92374.0,92373.0,0.03865312]
[1764918944060,0.02663,92374.0,92373.0,0.03865312]
[1764918946556,0.02663,92374.0,92373.0,0.03865364]
[1764918947792,0.01989426,92385.0,92381.0,0.01082473]
[1764918948005,0.00907,92385.0,92384.0,0.02157364]
[1764918948162,0.00907,92385.0,92384.0,0.03865364]
[1764918948784,0.00907,92385.0,92384.0,0.01708]
[1764918948986,0.00907,92385.0,92384.0,0.03865364]
[1764918949399,0.01082356,92391.0,92390.0,0.02157364]
[1764918949918,0.02641356,92391.0,92390.0,0.02157364]
[1764918950432,0.01559,92391.0,92390.0,0.02157364]
[1764918950638,0.01559,92391.0,92390.0,0.02257364]
[1764918951197,0.01559,92391.0,92390.0,0.23904728]
[1764918951534,0.01092,92395.0,92392.0,0.22729008]
[1764918951732,0.01092,92395.0,92394.0,0.23803791]
[1764918952236,0.02651,92395.0,92394.0,0.23803791]
[1764918952896,0.02651,92403.0,92402.0,0.23801917]
[1764918953104,0.01082122,92411.0,92407.0,0.02157364]
[1764918953366,0.0108211,92412.0,92407.0,0.02157364]
[1764918953617,0.01082133,92410.0,92407.0,0.02157364]
[1764918953861,0.01082122,92411.0,92407.0,0.02157364]
[1764918954074,0.03081052,92417.0,92407.0,0.02157364]
[1764918954286,0.01007,92408.0,92407.0,0.02157364]
[1764918954492,0.001,92408.0,92407.0,0.06854416]
[1764918954698,0.01092,92418.0,92417.0,0.02157364]
[1764918954906,0.01092,92418.0,92417.0,0.03865364]
[1764918955107,0.02651,92418.0,92417.0,0.03865364]
[1764918955439,0.01082063,92416.0,92415.0,0.02157364]
[1764918955652,0.01082052,92417.0,92415.0,0.01708]
[1764918955852,0.0108204,92418.0,92417.0,0.02157364]